bitfinex/quotes_SOLUSD_20250421
["timestamp","ask_amount","ask_price","bid_price","bid_amount"]
[1745206003105,99.44964886,138.97,138.96,15.6]
[1745206003301,99.44964886,138.97,138.95,246.26]
[1745206003521,99.44964886,138.97,138.93,0.063]
[1745206004323,12.11674915,138.94,138.93,0.063]
[1745206004830,30.76639801,138.94,138.93,0.063]
[1745206005006,12.11674915,138.94,138.93,0.063]
[1745206005209,12.11674915,138.94,138.93,15.663]
[1745206006925,12.11674915,138.94,138.93,15.80516157]
[1745206008330,12.11674915,138.94,138.93,15.663]
[1745206008628,12.11674915,138.94,138.93,15.80516157]
[1745206012429,12.11674915,138.94,138.93,15.663]
[1745206015318,12.11674915,138.94,138.93,15.80516157]
[1745206017513,12.11674915,138.94,138.93,15.663]
[1745206018947,30.76639801,138.94,138.93,15.663]
[1745206020630,12.11674915,138.94,138.93,15.663]
[1745206020931,12.11674915,138.94,138.93,15.80516157]
[1745206022440,12.11674915,138.94,138.93,15.663]
[1745206023144,12.11674915,138.94,138.93,15.80516157]
[1745206024522,12.11674915,138.94,138.93,15.663]
[1745206024924,44.64964886,138.92,138.91,0.063]
[1745206025136,44.64964886,138.92,138.89,15.6]
[1745206025137,56.76639801,138.92,138.89,15.6]
[1745206025327,30.76639801,138.9,138.89,15.6]
[1745206026137,12.11674915,138.9,138.89,15.6]
[1745206026727,12.11674915,138.9,138.89,15.74216157]
[1745206027241,12.11674915,138.9,138.89,15.6]
[1745206027428,7.77327193,138.9,138.89,15.6]
[1745206028332,7.77327193,138.9,138.89,15.74216157]
[1745206029245,7.77327193,138.9,138.89,15.6]
[1745206030730,7.77327193,138.9,138.89,15.74216157]
[1745206030932,7.77327193,138.9,138.89,15.6]
[1745206031333,7.77327193,138.9,138.89,15.74216157]
[1745206031545,18.64964886,138.92,138.89,15.6]
[1745206031748,7.77327193,138.9,138.89,15.74216157]
[1745206034458,80.8,138.93,138.9,0.14216157]
[1745206034767,7.77327193,138.92,138.9,0.14216157]
[1745206035054,7.77327193,138.91,138.9,0.14216157]
[1745206035660,7.77327193,138.91,138.9,15.6]
[1745206038159,28.01482079,138.91,138.9,15.6]
[1745206038359,18.64964886,138.9,138.89,15.6]
[1745206038654,26.42292079,138.9,138.89,15.6]
[1745206041465,107.22292079,138.9,138.89,15.6]
[1745206045864,88.57327193,138.9,138.89,15.6]
[1745206048365,115.0017,138.95,138.89,15.74216157]
[1745206048571,18.64964886,138.94,138.9,0.14216157]
[1745206048766,7.77327193,138.91,138.9,0.14216157]
[1745206048953,7.77327193,138.91,138.89,15.6]
[1745206049271,7.77327193,138.9,138.89,15.6]
[1745206051861,7.77327193,138.9,138.89,15.74216157]
[1745206056871,7.77327193,138.9,138.89,15.6]
[1745206057173,26.42292079,138.9,138.89,15.6]
[1745206062265,7.77327193,138.9,138.89,15.6]
[1745206067152,80.8,138.93,138.89,15.74216157]
[1745206067455,7.77327193,138.9,138.89,15.6]
[1745206067775,26.42292079,138.9,138.89,15.6]
[1745206071462,7.77327193,138.9,138.89,15.6]
[1745206074871,18.64964886,138.92,138.89,15.6]
[1745206075072,7.77327193,138.9,138.89,15.6]
[1745206078999,18.64964886,138.92,138.89,15.6]
[1745206079167,7.77327193,138.9,138.89,15.6]
[1745206079366,18.64964886,138.92,138.89,15.6]
[1745206079568,7.77327193,138.9,138.89,15.6]
[1745206080487,18.64964886,138.92,138.89,15.6]
[1745206080783,7.77327193,138.9,138.89,15.6]
[1745206090785,26.42292079,138.9,138.89,15.6]
[1745206090976,28.02522079,138.9,138.89,15.6]
[1745206091289,0.03,138.96,138.9,0.14216157]
[1745206091589,7.77327193,138.93,138.9,0.14216157]
[1745206091802,7.77327193,138.92,138.9,0.14216157]
[1745206092006,49.77273658,138.96,138.9,0.14216157]
[1745206092299,7.77327193,138.94,138.9,0.14216157]
[1745206093187,18.67964886,138.96,138.9,0.14216157]
[1745206093491,7.77327193,138.93,138.9,0.14216157]
[1745206095372,7.77327193,138.92,138.9,0.14216157]
[1745206095572,7.77327193,138.91,138.9,0.14216157]
[1745206096281,7.77327193,138.91,138.89,15.6]
[1745206096587,7.77327193,138.9,138.89,15.6]
[1745206102176,7.77327193,138.91,138.89,15.6]
[1745206102380,7.77327193,138.9,138.89,15.6]
[1745206107399,26.42292079,138.9,138.89,15.6]
[1745206111182,7.77327193,138.9,138.89,15.6]
[1745206111383,80.8,138.93,138.89,15.6]
[1745206111584,7.77327193,138.92,138.89,15.6]
[1745206111889,80.8,138.93,138.89,15.6]
[1745206111890,7.77327193,138.91,138.89,15.6]
[1745206112302,7.77327193,138.9,138.89,15.74216157]
[1745206112500,80.8,138.93,138.89,15.74216157]
[1745206112703,7.77327193,138.91,138.89,15.74216157]
[1745206113306,7.77327193,138.9,138.89,15.74216157]
[1745206113892,7.77327193,138.9,138.89,15.6]
[1745206119405,80.8,138.91,138.89,15.6]
[1745206119582,7.77327193,138.9,138.89,15.6]
[1745206120608,28.02822079,138.9,138.89,15.58]
[1745206120788,18.64964886,138.89,138.87,0.063]
[1745206120990,38.86635965,138.88,138.87,0.063]
[1745206121299,7.77327193,138.88,138.87,0.063]
[1745206122902,26.42292079,138.88,138.87,0.063]
[1745206123107,7.77327193,138.88,138.87,0.063]
[1745206125404,7.77327193,138.88,138.87,15.623]
[1745206127401,18.64964886,138.89,138.87,15.623]
[1745206127717,7.77327193,138.88,138.87,15.623]
[1745206132321,57.51600851,138.88,138.87,15.623]
[1745206132521,26.42292079,138.88,138.87,15.623]
[1745206132717,7.77327193,138.88,138.87,15.623]
[1745206138918,18.64964886,138.9,138.87,15.623]
[1745206139225,7.77327193,138.88,138.87,15.623]
[1745206139425,80.8,138.91,138.87,15.76516157]
[1745206139631,7.77327193,138.9,138.87,15.76516157]
[1745206141608,7.77327193,138.89,138.87,15.76516157]
[1745206141811,7.77327193,138.89,138.88,0.14216157]
[1745206142126,18.64964886,138.94,138.88,0.14216157]
[1745206142309,80.8,138.95,138.88,0.14216157]
[1745206142509,7.77327193,138.94,138.88,0.14216157]
[1745206143124,80.8,138.95,138.88,0.14216157]
[1745206143435,7.77327193,138.9,138.88,0.14216157]
[1745206143816,7.77327193,138.91,138.88,0.14216157]
[1745206151729,18.64964886,138.94,138.88,0.14216157]
[1745206151939,7.77327193,138.92,138.88,0.14216157]
[1745206152436,7.77327193,138.93,138.88,0.14216157]
[1745206152641,7.77327193,138.94,138.88,0.14216157]
[1745206153519,7.77327193,138.93,138.88,0.14216157]
[1745206154941,7.77327193,138.94,138.88,0.14216157]
[1745206155440,7.77327193,138.93,138.88,0.14216157]
[1745206157444,80.8,138.95,138.88,0.14216157]
[1745206157746,7.77327193,138.93,138.88,0.14216157]
[1745206159846,7.77327193,138.93,138.9,0.14216157]
[1745206160943,80.8,138.95,138.9,0.14216157]
[1745206160944,7.77327193,138.94,138.9,0.14216157]
[1745206164555,0.03,138.96,138.9,1.73866157]
[1745206167842,0.03,138.96,138.9,27.73866157]
[1745206168434,7.80327193,138.96,138.9,27.73866157]
[1745206168841,0.03,138.96,138.9,27.73866157]
[1745206170352,0.03,138.96,138.94,26.0]
[1745206170555,0.03,138.96,138.95,15.54]
[1745206170759,0.03,138.96,138.95,15.68216157]
[1745206174750,0.03,139.02,138.97,26.0]
[1745206174939,0.03,139.02,138.98,0.14216157]
[1745206179270,0.03,139.02,138.97,0.14216157]
[1745206180040,7.80327193,139.02,138.96,80.7]
[1745206180246,7.77327193,139.01,138.97,246.42]
[1745206180446,7.77327193,139.01,138.98,0.14216157]
[1745206181768,7.77327193,139.01,138.97,246.42]
[1745206181974,7.77327193,139.01,138.98,0.14216157]
[1745206182457,7.77327193,139.01,138.97,246.42]
[1745206182660,7.77327193,139.0,138.98,0.14216157]
[1745206183066,7.77327193,139.01,138.98,0.14216157]
[1745206183464,7.77327193,139.01,138.97,246.42]
[1745206183846,7.77327193,139.01,138.98,0.14216157]
[1745206186270,7.77327193,139.01,139.0,0.14216157]
[1745206187248,9.38927193,139.02,139.0,0.14216157]
[1745206187770,0.03,139.02,139.0,0.14216157]
[1745206189952,0.03,139.02,139.01,26.14216157]
[1745206191183,0.03,139.02,139.01,0.14216157]
[1745206193366,0.03,139.02,139.0,26.0]
[1745206193880,0.03,139.02,139.01,0.14216157]
[1745206197874,0.03,139.02,139.01,26.14216157]
[1745206200299,0.03,139.03,139.01,44.79181043]
[1745206200494,0.03,139.03,139.02,0.14216157]
[1745206204202,0.03,139.03,139.02,246.46216157]
[1745206210001,0.03,139.03,139.02,272.46216157]
[1745206214210,0.03,139.03,139.02,246.46216157]
[1745206216295,0.03,139.04,139.02,246.46216157]
[1745206216296,0.03,139.04,139.03,18.79181043]
[1745206216496,0.03,139.04,139.03,19.79181043]
[1745206216692,0.03,139.05,139.03,19.79181043]
[1745206216891,0.03,139.05,139.04,15.64216157]
[1745206217714,0.03,139.07,139.06,26.0]
[1745206218103,0.03,139.07,139.06,26.14216157]
[1745206218609,0.03,139.07,139.06,26.0]
[1745206218803,0.03,139.07,139.06,26.14216157]
[1745206220088,0.03,139.07,139.06,26.14216157]
[1745206222503,0.03,139.07,139.06,26.0]
[1745206222708,0.03,139.07,139.06,26.14216157]
[1745206234834,0.03,139.08,139.07,0.14216157]
[1745206235736,0.02999997,139.08,139.07,0.14216157]
[1745206237029,0.02999997,139.08,139.04,15.5]
[1745206237030,7.8032719,139.08,139.04,15.5]
[1745206237318,7.77327193,139.06,139.04,15.5]
[1745206237530,7.77327193,139.05,139.04,15.5]
[1745206237841,7.77327193,139.05,139.04,15.64216157]
[1745206238916,7.77327193,139.05,139.04,15.5]
[1745206239138,7.77327193,139.05,139.04,15.64216157]
[1745206239318,7.77327193,139.05,139.04,15.5]
[1745206240115,7.77327193,139.05,139.04,15.64216157]
[1745206242931,6.28669997,139.08,139.04,15.64216157]
[1745206243328,7.77327193,139.05,139.04,15.64216157]
[1745206244833,7.77327193,139.05,139.04,15.5]
[1745206245026,28.08382079,139.05,139.04,15.5]
[1745206247510,20.31054886,139.05,139.04,15.5]
[1745206247716,28.08382079,139.05,139.04,15.5]
[1745206256542,9.43417193,139.05,139.04,15.5]
[1745206256930,6.28669997,139.08,139.04,15.5]
[1745206257126,7.77327193,139.06,139.04,15.5]
[1745206258422,6.28669997,139.08,139.05,0.14216157]
[1745206258622,0.02999997,139.08,139.05,0.14216157]
[1745206260046,7.77327193,139.07,139.05,0.14216157]
[1745206260634,7.77327193,139.07,139.04,15.5]
[1745206260939,7.8032719,139.08,139.04,15.5]
[1745206261251,7.8032719,139.08,139.05,0.14216157]
[1745206262156,0.02999997,139.08,139.05,0.14216157]
[1745206264429,0.02999997,139.08,139.07,0.14216157]
[1745206264747,0.03,139.1,139.07,0.14216157]
[1745206265147,0.03,139.1,139.07,18.79181043]
[1745206266033,0.03,139.1,139.07,19.79181043]
[1745206266239,0.03,139.1,139.08,0.14216157]
[1745206266443,0.03,139.1,139.09,15.62216157]
[1745206267743,0.03,139.1,139.09,34.27181043]
[1745206270738,0.03,139.1,139.09,15.48]
[1745206271666,0.03,139.1,139.09,15.62216157]
[1745206271958,0.03,139.1,139.09,15.48]
[1745206272453,0.03,139.1,139.09,15.62216157]
[1745206273144,0.03,139.1,139.09,15.48]
[1745206273852,0.03,139.1,139.09,41.62216157]
[1745206277265,0.03,139.1,139.09,41.48]
[1745206277640,0.03,139.1,139.09,41.62216157]
[1745206277945,0.03,139.1,139.09,15.62216157]
[1745206278139,0.03,139.1,139.09,15.48]
[1745206278860,0.03,139.1,139.09,15.62216157]
[1745206280254,0.03,139.1,139.09,261.80216157]
[1745206285468,0.03,139.13,139.1,18.79181043]
[1745206285770,0.03,139.13,139.1,0.14216157]
[1745206287069,0.03,139.13,139.1,18.79181043]
[1745206287447,0.03,139.13,139.1,19.79181043]
[1745206287781,0.03,139.13,139.1,110.61740409]
[1745206288158,0.03,139.13,139.12,44.79181043]
[1745206289774,0.03,139.13,139.12,26.14216157]
[1745206291273,0.03,139.15,139.13,0.14216157]
[1745206291567,0.03,139.15,139.14,34.25181043]
[1745206291752,0.03,139.15,139.14,15.60216157]
[1745206293248,0.03,139.15,139.14,19.12130409]
[1745206293461,0.03,139.16,139.15,18.79181043]
[1745206293965,0.03,139.16,139.15,0.14216157]
[1745206297843,0.03,139.16,139.15,18.79181043]
[1745206298157,0.03,139.18,139.15,22.89309541]
[1745206299574,0.03,139.21,139.15,103.59309541]
[1745206300374,0.03,139.21,139.15,102.15681043]
[1745206300766,0.03,139.21,139.15,101.15681043]
[1745206300969,0.03,139.21,139.15,102.15681043]
[1745206302473,0.03,139.21,139.17,18.79181043]
[1745206302677,0.03,139.21,139.2,26.14216157]
[1745206302972,0.03,139.21,139.2,41.60216157]
[1745206305671,0.03,139.21,139.2,15.60216157]
[1745206312765,0.03,139.21,139.2,15.46]
[1745206312954,0.03,139.21,139.2,261.60216157]
[1745206321770,7.76171097,139.21,139.2,261.60216157]
[1745206321976,9.38541097,139.21,139.2,261.46]
[1745206322692,18.64964886,139.2,139.17,246.0]
[1745206322992,49.57649274,139.2,139.18,15.44]
[1745206323989,7.73171097,139.19,139.18,15.44]
[1745206324224,34.14045983,139.19,139.17,246.0]
[1745206324394,18.64964886,139.17,139.12,0.063]
[1745206324774,7.73171097,139.16,139.12,0.063]
[1745206325082,7.7591,139.19,139.12,0.063]
[1745206325290,15.49081097,139.19,139.15,0.14216157]
[1745206325484,7.73171097,139.18,139.15,0.14216157]
[1745206325687,7.73171097,139.16,139.15,0.14216157]
[1745206326365,7.73171097,139.16,139.13,261.48]
[1745206326592,7.73171097,139.14,139.13,261.48]
[1745206327097,7.73171097,139.14,139.13,261.62216157]
[1745206327288,7.73171097,139.15,139.14,0.14216157]
[1745206329498,44.64964886,139.18,139.14,0.14216157]
[1745206329995,7.73171097,139.15,139.14,0.14216157]
[1745206330292,7.73171097,139.15,139.13,261.48]
[1745206330596,7.73171097,139.14,139.13,261.62216157]
[1745206331171,7.73171097,139.14,139.13,261.48]
[1745206332676,7.73171097,139.17,139.14,0.14216157]
[1745206332994,15.49081097,139.19,139.14,0.14216157]
[1745206333195,7.73171097,139.18,139.14,0.14216157]
[1745206333699,7.7591,139.19,139.14,0.14216157]
[1745206334207,15.49081097,139.19,139.14,0.14216157]
[1745206334496,7.73171097,139.16,139.14,0.14216157]
[1745206335691,7.73171097,139.15,139.14,0.14216157]
[1745206335903,7.73171097,139.15,139.13,261.48]
[1745206336087,7.73171097,139.14,139.13,261.48]
[1745206336576,7.73171097,139.15,139.13,261.62216157]
[1745206338799,7.73171097,139.15,139.14,0.14216157]
[1745206338988,7.73171097,139.16,139.14,0.14216157]
[1745206344299,7.73171097,139.15,139.14,0.14216157]
[1745206357393,7.73171097,139.15,139.13,261.48]
[1745206357597,7.73171097,139.14,139.13,261.48]
[1745206359919,7.73171097,139.15,139.14,0.14216157]
[1745206360103,7.73171097,139.15,139.13,261.48]
[1745206360296,7.73171097,139.16,139.14,0.14216157]
[1745206360915,7.73171097,139.15,139.14,0.14216157]
[1745206361927,7.73171097,139.15,139.13,261.48]
[1745206362222,7.73171097,139.14,139.13,261.48]
[1745206375108,18.64964886,139.17,139.13,261.62216157]
[1745206375528,7.73171097,139.14,139.13,261.62216157]
[1745206376742,7.73171097,139.14,139.13,261.48]
[1745206376930,7.73171097,139.14,139.13,261.62216157]
[1745206377918,7.73171097,139.14,139.13,261.48]
[1745206379111,18.64964886,139.17,139.13,261.48]
[1745206379311,7.73171097,139.14,139.13,261.48]
[1745206379911,18.64964886,139.17,139.13,261.48]
[1745206380110,7.73171097,139.14,139.13,261.48]
[1745206385452,26.38135983,139.14,139.13,261.48]
[1745206385741,18.64964886,139.13,139.09,246.18]
[1745206385950,30.92684388,139.12,139.1,15.42]
[1745206386830,7.9407,139.14,139.1,15.42]
[1745206387034,26.59034886,139.14,139.1,15.42]
[1745206387348,7.73171097,139.11,139.1,15.42]
[1745206391242,26.38135983,139.11,139.1,15.42]
[1745206393243,18.64964886,139.1,139.08,0.063]
[1745206393553,18.64964886,139.1,139.09,15.42]
[1745206394046,18.64964886,139.11,139.09,15.42]
[1745206394548,7.9407,139.1,139.08,0.063]
[1745206394739,26.38135983,139.09,139.08,0.063]
[1745206395248,26.38135983,139.09,139.08,15.483]
[1745206396944,26.38135983,139.09,139.07,0.063]
[1745206396945,18.64964886,139.08,139.07,0.063]
[1745206397252,18.64964886,139.08,139.07,15.503]
[1745206397253,26.38135983,139.08,139.07,15.503]
[1745206397547,26.38135983,139.08,139.07,15.42]
[1745206397744,26.38135983,139.08,139.04,0.063]
[1745206398131,26.38135983,139.05,139.04,0.063]
[1745206401765,20.16744886,139.04,139.02,0.063]
[1745206401928,26.38135983,139.03,138.99,0.063]
[1745206402129,26.38135983,139.01,138.99,0.063]
[1745206405250,26.38135983,139.01,139.0,15.483]
[1745206406627,26.38135983,139.01,139.0,15.42]
[1745206406849,18.64964886,139.0,138.98,0.063]
[1745206407049,7.73171097,138.99,138.96,0.063]
[1745206407251,26.38135983,138.97,138.96,0.063]
[1745206407551,57.30820371,138.97,138.96,0.063]
[1745206408253,57.30820371,138.97,138.91,0.063]
[1745206408451,7.73171097,138.92,138.91,0.063]
[1745206410736,18.64964886,138.95,138.91,0.063]
[1745206410953,1.5178,138.98,138.91,0.063]
[1745206411259,18.64964886,138.97,138.91,0.063]
[1745206411851,7.73171097,138.96,138.91,0.063]
[1745206413264,18.64964886,138.98,138.91,0.063]
[1745206413443,7.73171097,138.95,138.91,0.063]
[1745206414161,7.73171097,138.94,138.91,0.063]
[1745206414365,7.73171097,138.93,138.91,0.063]
[1745206414960,7.73171097,138.92,138.91,0.063]
[1745206415348,7.73171097,138.92,138.91,261.943]
[1745206415552,7.73171097,138.92,138.91,262.08516157]
[1745206419039,7.73171097,138.95,138.92,0.14216157]
[1745206419239,7.73171097,138.98,138.92,0.14216157]
[1745206419464,7.73171097,138.97,138.94,0.14216157]
[1745206419667,7.73171097,138.96,138.94,0.14216157]
[1745206419964,7.73171097,138.97,138.94,0.14216157]
[1745206421466,18.64964886,139.01,138.92,0.14216157]
[1745206421647,7.73171097,138.98,138.92,0.14216157]
[1745206421847,7.73171097,138.97,138.92,0.14216157]
[1745206422071,7.73171097,138.98,138.92,0.14216157]
[1745206422364,7.73171097,138.97,138.92,0.14216157]
[1745206425565,7.73171097,138.94,138.92,0.14216157]
[1745206425871,7.73171097,138.93,138.92,0.14216157]
[1745206426565,7.73171097,138.93,138.91,261.943]
[1745206426765,18.64964886,138.98,138.92,0.14216157]
[1745206427353,7.73171097,138.95,138.92,0.14216157]
[1745206427663,7.73171097,138.94,138.92,0.14216157]
[1745206435081,18.64964886,138.98,138.92,0.14216157]
[1745206435377,7.73171097,138.94,138.92,0.14216157]
[1745206436873,18.64964886,138.98,138.92,0.14216157]
[1745206437092,7.73171097,138.93,138.92,0.14216157]
[1745206438478,7.73171097,138.93,138.91,261.943]
[1745206438676,7.73171097,138.92,138.91,262.08516157]
[1745206439059,18.64964886,138.95,138.91,262.08516157]
[1745206439281,7.73171097,138.92,138.91,262.08516157]
[1745206440277,7.975,138.98,138.92,0.14216157]
[1745206440474,7.73171097,138.98,138.92,0.14216157]
[1745206440670,8.005,139.02,138.92,20.32801043]
[1745206440976,9.36521097,139.02,138.92,20.32801043]
[1745206441176,1.6335,139.02,138.92,20.32801043]
[1745206441364,9.36521097,139.02,138.92,20.32801043]
[1745206441680,9.36521097,139.02,138.92,101.02801043]
[1745206443279,13.75492243,139.02,138.92,101.02801043]
[1745206444179,0.03,139.02,138.95,6.6225]
[1745206444369,0.03,139.02,138.97,0.14216157]
[1745206447060,0.03,139.02,138.97,18.79181043]
[1745206447570,0.03,139.02,139.01,0.14216157]
[1745206447770,0.03,139.02,139.01,15.56216157]
[1745206450161,0.03,139.03,139.01,15.56216157]
[1745206450484,0.03,139.03,139.02,246.56216157]
[1745206459793,0.03,139.03,139.02,246.42]
[1745206459963,0.03,139.03,139.02,246.56216157]
[1745206464579,12.15142243,139.03,139.02,246.56216157]
[1745206465095,12.15142243,139.03,139.02,246.42]
[1745206465273,7.78611644,139.03,139.02,246.56216157]
[1745206466199,0.03,139.03,139.02,246.56216157]
[1745206469179,7.78611644,139.03,139.02,246.56216157]
[1745206470874,7.78611644,139.03,139.02,246.42]
[1745206474690,0.03,139.03,139.02,246.42]
[1745206474879,7.78611644,139.03,139.02,246.42]
[1745206478096,0.03,139.03,139.02,246.42]
[1745206478705,0.03,139.03,139.02,246.56216157]
[1745206482807,0.03,139.03,139.02,252.25891672]
[1745206483307,0.03,139.03,139.02,246.56216157]
[1745206490924,0.03,139.03,139.02,272.56216157]
[1745206495607,0.03,139.03,139.02,246.56216157]
[1745206497997,0.03,139.03,139.02,261.94216157]
[1745206501420,0.03,139.03,139.02,261.8]
[1745206502104,0.03,139.03,139.02,261.94216157]
[1745206522008,0.03,139.08,139.05,26.0]
[1745206522212,0.03,139.08,139.06,0.14216157]
[1745206522414,0.03,139.08,139.07,15.50216157]
[1745206523822,0.03,139.08,139.07,34.15181043]
[1745206528244,0.03,139.08,139.07,114.85181043]
[1745206533552,0.03,139.08,139.07,140.85181043]
[1745206534454,0.03,139.09,139.08,0.14216157]
[1745206534753,0.03,139.09,139.08,106.84216157]
[1745206536643,0.03,139.14,139.1,18.79181043]
[1745206536859,6.184,139.21,139.1,18.79181043]
[1745206536860,7.7671,139.21,139.13,0.14216157]
[1745206537052,7.7671,139.21,139.15,0.14216157]
[1745206537229,7.7671,139.21,139.15,18.79181043]
[1745206537634,1.6131,139.21,139.15,18.79181043]
[1745206538052,0.03,139.21,139.15,100.92823997]
[1745206538751,0.03,139.21,139.15,106.62690318]
[1745206539160,0.03,139.21,139.15,86.54082478]
[1745206539455,0.03,139.21,139.15,106.84216157]
[1745206539765,0.03,139.21,139.15,112.51209634]
[1745206541349,0.03,139.21,139.16,18.64964886]
[1745206541556,0.03,139.21,139.17,0.14216157]
[1745206548855,0.03,139.21,139.19,0.14216157]
[1745206549065,0.03,139.21,139.19,114.83181043]
[1745206553068,0.03,139.21,139.19,96.18216157]
[1745206553867,0.03,139.21,139.19,96.04]
[1745206554161,0.03,139.21,139.19,15.34]
[1745206554665,0.03,139.21,139.2,246.16216157]
[1745206555165,0.03,139.21,139.2,246.02]
[1745206555468,0.03,139.21,139.2,246.16216157]
[1745206557652,7.78611644,139.21,139.2,246.02]
[1745206557852,0.03,139.21,139.2,246.16216157]
[1745206558641,0.03,139.21,139.2,246.02]
[1745206559056,0.03,139.21,139.2,246.16216157]
[1745206559866,0.00359585,139.22,139.21,0.14216157]
[1745206560043,0.01359585,139.23,139.21,99.49181043]
[1745206560242,0.01359585,139.23,139.21,18.79181043]
[1745206562349,0.01359585,139.23,139.21,20.22758976]
[1745206562571,0.01359585,139.23,139.21,18.79181043]
[1745206562775,0.01359585,139.23,139.22,26.14216157]
[1745206562941,0.01359585,139.23,139.22,15.32]
[1745206563339,7.76971229,139.23,139.22,15.32]
[1745206563577,0.01359585,139.23,139.22,15.32]
[1745206563872,0.01359585,139.23,139.22,15.46216157]
[1745206564072,0.01359585,139.23,139.22,15.32]
[1745206564247,0.01359585,139.23,139.22,15.46216157]
[1745206564664,0.01359585,139.23,139.22,15.32]
[1745206564949,0.01359585,139.23,139.22,15.46216157]
[1745206565965,7.76971229,139.23,139.22,15.46216157]
[1745206566274,7.76971229,139.23,139.22,15.32]
[1745206569074,26.41936115,139.23,139.22,15.32]
[1745206569277,30.75311641,139.23,139.22,15.32]
[1745206570854,18.64964886,139.22,139.2,246.02]
[1745206571070,20.3960717,139.21,139.15,0.063]
[1745206571285,12.0898717,139.17,139.15,0.063]
[1745206572682,12.0898717,139.16,139.15,0.063]
[1745206575374,12.0898717,139.16,139.15,15.383]
[1745206578086,12.0898717,139.17,139.15,15.383]
[1745206579963,12.0898717,139.18,139.16,0.14216157]
[1745206580181,12.0898717,139.19,139.16,0.14216157]
[1745206580499,8.3062,139.21,139.16,0.14216157]
[1745206580662,12.0898717,139.2,139.16,0.14216157]
[1745206581173,12.0898717,139.19,139.16,0.14216157]
[1745206581377,8.3062,139.21,139.16,0.14216157]
[1745206581683,12.0898717,139.19,139.16,0.14216157]
[1745206585069,12.0898717,139.2,139.16,0.14216157]
[1745206586792,8.3062,139.21,139.16,0.14216157]
[1745206586977,12.0898717,139.2,139.16,0.14216157]
[1745206587490,1.6504,139.21,139.19,0.14216157]
[1745206587669,12.10346755,139.23,139.21,0.14216157]
[1745206588297,12.0898717,139.22,139.21,0.14216157]
[1745206588789,12.10346755,139.23,139.21,0.14216157]
[1745206589365,7.7478977,139.23,139.21,0.14216157]
[1745206589778,0.01359585,139.23,139.21,0.14216157]
[1745206589979,7.7478977,139.23,139.21,0.14216157]
[1745206591892,7.73430185,139.22,139.21,0.14216157]
[1745206592078,7.73430185,139.22,139.21,246.18216157]
[1745206592393,7.73430185,139.22,139.21,246.04]
[1745206594991,7.23430185,139.22,139.21,246.04]
[1745206596770,6.73430185,139.22,139.21,246.04]
[1745206596978,7.73430185,139.22,139.21,246.04]
[1745206597673,26.38395071,139.22,139.21,246.04]
[1745206599006,26.38395071,139.22,139.2,15.52]
[1745206599178,0.01359585,139.23,139.2,15.52]
[1745206599179,28.01175071,139.21,139.2,15.52]
[1745206599497,58.94895811,139.21,139.2,15.52]
[1745206600086,18.64964886,139.19,139.15,0.063]
[1745206600284,7.73430185,139.16,139.15,0.063]
[1745206601194,6.0558,139.2,139.15,0.063]
[1745206601397,7.73430185,139.17,139.15,0.063]
[1745206602680,7.73430185,139.18,139.15,0.063]
[1745206602884,7.73430185,139.19,139.15,0.063]
[1745206603683,7.73430185,139.2,139.15,0.063]
[1745206605198,7.73430185,139.19,139.15,0.063]
[1745206605501,7.73430185,139.19,139.17,0.14216157]
[1745206605797,7.73430185,139.2,139.17,0.14216157]
[1745206607603,7.73430185,139.21,139.17,0.14216157]
[1745206607979,6.06939585,139.23,139.17,0.14216157]
[1745206608184,7.73430185,139.21,139.17,0.14216157]
[1745206608503,7.73430185,139.22,139.17,0.14216157]
[1745206609693,7.7478977,139.23,139.17,0.14216157]
[1745206610711,0.01359585,139.23,139.17,1.74056157]
[1745206611712,7.7478977,139.23,139.17,1.74056157]
[1745206612005,7.73430185,139.21,139.17,1.74056157]
[1745206612185,7.73430185,139.2,139.17,0.14216157]
[1745206612385,7.73430185,139.2,139.16,261.6]